bitfinex-derivatives/quotes_SOLF0:USTF0_20250803
["timestamp","ask_amount","ask_price","bid_price","bid_amount"]
[1754239914087,3.51,162.24,162.22,6.21016456]
[1754239914583,3.51,162.24,162.23,3.44]
[1754239915385,3.51,162.24,162.22,9.65016456]
[1754239915777,9.6738,162.24,162.23,3.44]
[1754239916077,3.51,162.23,162.21,3.44]
[1754239916485,3.51,162.22,162.2,12.37546456]
[1754239916876,3.51,162.23,162.2,6.21016456]
[1754239917182,6.164,162.24,162.21,3.44]
[1754239917484,9.674,162.24,162.23,3.44]
[1754239920486,6.164,162.24,162.22,9.65016456]
[1754239920786,3.51,162.23,162.22,6.21016456]
[1754239920984,6.1642,162.23,162.2,6.21016456]
[1754239921286,3.51,162.28,162.21,3.44]
[1754239921686,3.51,162.25,162.21,3.44]
[1754239922780,6.164,162.24,162.21,3.44]
[1754239923086,3.51,162.24,162.22,3.44]
[1754239923387,3.51,162.25,162.22,3.44]
[1754239923687,3.51,162.28,162.22,3.44]
[1754239924581,3.51,162.23,162.21,3.44]
[1754239924784,3.51,162.23,162.18,9.65016456]
[1754239924984,3.51,162.23,162.18,3.44]
[1754239925184,3.51,162.23,162.19,3.44]
[1754239925384,3.51,162.23,162.16,12.37696456]
[1754239925385,3.51,162.23,162.16,6.21016456]
[1754239925581,3.51,162.23,162.2,3.44]
[1754239925781,6.1655,162.2,162.16,6.21016456]
[1754239925983,3.51,162.19,162.16,6.21016456]
[1754239926590,3.51,162.19,162.17,3.44]
[1754239926785,6.21016456,162.23,162.14,6.21016456]
[1754239927092,3.51,162.2,162.12,6.21016456]
[1754239927280,6.1667,162.17,162.13,3.44]
[1754239927479,3.51,162.15,162.13,3.44]
[1754239928386,6.1666,162.17,162.13,3.44]
[1754239928592,3.51,162.15,162.13,3.44]
[1754239929092,6.1666,162.17,162.13,3.44]
[1754239929293,3.51,162.16,162.13,3.44]
[1754239929586,3.51,162.16,162.13,9.65016456]
[1754239929788,9.6766,162.17,162.14,3.44]
[1754239930293,3.51,162.18,162.14,3.44]
[1754239930793,6.1665,162.17,162.14,3.44]
[1754239930989,3.51,162.18,162.14,3.44]
[1754239931388,6.1663,162.18,162.14,3.44]
[1754239931592,3.51,162.17,162.14,3.44]
[1754239931988,9.6765,162.17,162.14,3.44]
[1754239932185,3.51,162.22,162.16,3.44]
[1754239932384,3.51,162.22,162.17,6.21016456]
[1754239932590,9.675,162.21,162.18,3.44]
[1754239933883,6.165,162.21,162.18,3.44]
[1754239934091,6.1653,162.2,162.17,6.21016456]
[1754239934398,3.34,162.24,162.18,3.31]
[1754239934891,6.1656,162.2,162.17,9.52016456]
[1754239935087,9.5056,162.2,162.18,3.31]
[1754239935289,9.5056,162.2,162.19,3.31]
[1754239935893,9.5056,162.2,162.13,5.12434446]
[1754239936090,3.34,162.2,162.17,3.31]
[1754239936492,3.34,162.19,162.17,3.31]
[1754239936998,6.1652,162.21,162.19,3.31]
[1754239937193,27.24642981,162.29,162.2,6.21016456]
[1754239937398,3.34,162.24,162.21,3.31]
[1754239937893,27.24642981,162.29,162.21,3.31]
[1754239938099,3.34,162.23,162.22,3.31]
[1754239939199,9.5042,162.23,162.22,3.31]
[1754239942306,9.5039,162.24,162.22,3.31]
[1754239942907,9.5039,162.24,162.23,3.31]
[1754239949212,27.24642981,162.29,162.2,6.21016456]
[1754239949418,3.34,162.26,162.18,3.31]
[1754239950014,9.5054,162.2,162.19,3.31]
[1754239950521,3.34,162.2,162.19,3.31]
[1754239950821,9.505,162.21,162.19,3.31]
[1754239951219,6.1653,162.2,162.19,3.31]
[1754239951915,9.5053,162.2,162.19,3.31]
[1754239954123,9.5053,162.2,162.19,3.25]
[1754239957130,6.1657,162.19,162.16,15.68676456]
[1754239957420,3.34,162.2,162.17,3.31]
[1754239958226,9.5054,162.2,162.17,3.31]
[1754239960129,3.34,162.24,162.17,3.31]
[1754239961221,9.5055,162.2,162.17,3.31]
[1754239961419,9.5055,162.2,162.18,3.31]
[1754239961725,6.1655,162.2,162.18,3.31]
[1754239962318,9.505,162.21,162.18,3.31]
[1754239962723,3.34,162.21,162.18,3.31]
[1754239962929,3.34,162.2,162.18,3.31]
[1754239963318,9.5053,162.2,162.18,3.31]
[1754239964826,6.1653,162.2,162.18,3.31]
[1754239965030,9.4353,162.2,162.18,3.31]
[1754239965625,6.1657,162.19,162.18,3.31]
[1754239965827,3.27,162.19,162.18,3.31]
[1754239966029,6.21016456,162.26,162.18,3.31]
[1754239966235,6.1657,162.2,162.18,3.31]
[1754239966534,9.4357,162.2,162.18,3.31]
[1754239967636,6.1657,162.19,162.18,3.31]
[1754239967934,9.4357,162.19,162.18,3.31]
[1754239969136,9.4357,162.19,162.18,3.29]
[1754239970640,9.4357,162.19,162.18,7.26311802]
[1754239971639,6.1657,162.19,162.18,7.26311802]
[1754239971836,9.4354,162.2,162.18,7.26311802]
[1754239972033,9.4354,162.2,162.19,3.18]
[1754239973040,6.1654,162.2,162.19,3.18]
[1754239973839,9.4354,162.2,162.19,3.18]
[1754239974339,6.165,162.21,162.19,3.18]
[1754239974535,3.27,162.26,162.21,3.18]
[1754239974838,3.27,162.26,162.24,3.18]
[1754239975033,9.4334,162.25,162.24,3.18]
[1754239976841,9.4343,162.23,162.2,6.20474856]
[1754239977445,6.1643,162.23,162.21,3.18]
[1754239978646,9.4343,162.23,162.21,3.18]
[1754239981847,6.1645,162.22,162.21,3.18]
[1754239983145,6.20474856,162.29,162.2,6.20474856]
[1754239983444,6.20474856,162.23,162.17,3.18]
[1754239983744,3.27,162.22,162.18,3.18]
[1754239983945,3.27,162.2,162.18,3.18]
[1754239984148,8.01972086,162.19,162.18,3.18]
[1754239984347,7.97972086,162.19,162.18,3.18]
[1754239985246,14.14572086,162.19,162.18,3.18]
[1754239986846,7.97972086,162.19,162.18,3.18]
[1754239987944,4.70972086,162.19,162.18,3.18]
[1754239988450,3.27,162.26,162.18,3.18]
[1754239988750,3.27,162.26,162.21,3.18]
[1754239989050,13.12749295,162.29,162.21,3.18]
[1754239989343,3.27,162.28,162.21,3.18]
[1754239989753,6.1634,162.25,162.21,3.18]
[1754239989949,3.27,162.24,162.21,3.18]
[1754239991250,3.27,162.23,162.22,3.18]
[1754239992547,3.27,162.24,162.22,3.18]
[1754239993750,6.163,162.26,162.22,9.3443]
[1754239993946,3.41,162.25,162.23,3.23]
[1754239994146,6.163,162.26,162.23,3.23]
[1754239994352,3.41,162.24,162.23,3.23]
[1754239995252,6.20474856,162.29,162.23,3.23]
[1754239995752,3.41,162.28,162.23,3.23]
[1754239995948,6.1632,162.26,162.23,3.23]
[1754239996156,3.41,162.25,162.23,3.23]
[1754239996651,3.41,162.26,162.24,3.23]
[1754239996956,4.52910148,162.25,162.24,3.23]
[1754239997245,3.41,162.26,162.24,3.23]
[1754239998653,6.1629,162.27,162.25,3.23]
[1754239998857,4.52695572,162.26,162.25,3.23]
[1754239999256,4.38695572,162.26,162.25,3.23]
[1754239999759,7.79695572,162.26,162.25,3.23]
[1754240000256,13.95995572,162.26,162.25,3.23]
[1754240000855,4.38695572,162.26,162.25,3.23]
[1754240001360,3.41,162.26,162.25,3.23]
[1754240002259,9.573,162.26,162.25,3.23]
[1754240002761,6.163,162.26,162.25,3.23]
[1754240005664,9.573,162.26,162.25,3.23]
[1754240008758,6.163,162.26,162.25,7.1995097]
[1754240008958,3.41,162.28,162.26,3.23]
[1754240009168,3.41,162.28,162.26,7.1995097]
[1754240011366,7.92858023,162.27,162.26,7.1995097]
[1754240012968,7.92858023,162.27,162.26,3.23]
[1754240013171,7.92858023,162.27,162.26,7.1995097]
[1754240013669,7.92866757,162.27,162.26,7.1995097]
[1754240014167,7.90892251,162.27,162.26,7.1995097]
[1754240016073,4.51892251,162.27,162.26,7.1995097]
[1754240019266,7.92892251,162.27,162.26,7.1995097]
[1754240020278,4.51892251,162.27,162.26,7.1995097]
[1754240020568,3.41,162.27,162.26,3.23]
[1754240020766,3.41,162.27,162.26,7.1995097]
[1754240021473,3.9695097,162.31,162.27,3.23]
[1754240021474,3.41,162.29,162.27,3.23]
[1754240021673,7.92953462,162.28,162.27,7.1995097]
[1754240022664,7.92913271,162.28,162.27,7.1995097]
[1754240025467,7.92913271,162.28,162.27,7.1395097]
[1754240027777,3.41,162.28,162.27,7.1395097]
[1754240027971,7.92876521,162.28,162.27,7.1395097]
[1754240029484,7.88876521,162.28,162.27,7.1395097]
[1754240029977,14.05096521,162.28,162.27,7.1395097]
[1754240032083,14.05096521,162.28,162.27,3.17]
[1754240032381,14.05096521,162.28,162.27,7.1395097]
[1754240035286,14.05096521,162.28,162.27,3.17]
[1754240035585,7.88876521,162.28,162.27,3.17]
[1754240036085,4.51876521,162.28,162.27,3.17]
[1754240038984,4.51876521,162.28,162.27,7.1395097]
[1754240040782,4.51876521,162.28,162.27,13.3021097]
[1754240042185,4.51876521,162.28,162.27,7.1395097]
[1754240043591,3.41,162.3,162.27,10.1321097]
[1754240043888,4.53112622,162.29,162.28,3.17]
[1754240044286,4.51112622,162.29,162.28,3.17]
[1754240044484,4.49112622,162.29,162.28,3.17]
[1754240044989,4.49112622,162.29,162.28,7.1395097]
[1754240045190,7.90112622,162.29,162.28,7.1395097]
[1754240046183,7.90112622,162.29,162.28,3.17]
[1754240046389,7.90112622,162.29,162.28,7.1395097]
[1754240048989,6.1611,162.31,162.28,7.1395097]
[1754240049294,3.41,162.3,162.28,3.17]
[1754240050297,3.41,162.3,162.29,3.9695097]
[1754240050494,3.41,162.3,162.29,7.1395097]
[1754240053592,9.6011,162.31,162.3,3.17]
[1754240056389,14.11183806,162.31,162.3,3.17]
[1754240057198,3.44,162.3,162.28,3.24]
[1754240057494,3.44,162.3,162.29,7.2095097]
[1754240058992,3.42,162.3,162.29,7.2095097]
[1754240062504,3.44,162.31,162.29,7.2095097]
[1754240062704,3.44,162.31,162.3,3.24]
[1754240062898,7.95023359,162.31,162.3,3.24]
[1754240063202,14.11133359,162.31,162.3,7.2095097]
[1754240065504,3.44,162.3,162.23,5.14248243]
[1754240065703,7.95122131,162.29,162.25,7.2095097]
[1754240065910,6.1623,162.28,162.25,7.2095097]
[1754240066208,3.44,162.27,162.26,3.24]
[1754240067507,7.95180345,162.27,162.26,3.24]
[1754240068999,4.51180345,162.27,162.25,3.9695097]
[1754240069202,3.44,162.25,162.23,5.14248243]
[1754240069411,3.44,162.23,162.17,9.11199213]
[1754240069709,3.44,162.17,162.16,5.14248243]
[1754240070008,6.166,162.18,162.15,3.9695097]
[1754240070205,6.1665,162.17,162.16,3.24]
[1754240070412,3.44,162.17,162.13,3.24]
[1754240070601,3.9695097,162.16,162.13,3.24]
[1754240070801,3.44,162.14,162.13,3.24]
[1754240071001,3.44,162.13,162.12,3.24]
[1754240071210,3.9695097,162.14,162.1,6.1688]
[1754240071414,3.44,162.13,162.11,3.24]
[1754240071709,3.44,162.1,162.08,7.2095097]
[1754240072108,3.44,162.11,162.09,3.9695097]
[1754240072311,3.44,162.13,162.1,3.24]
[1754240072819,3.44,162.12,162.1,3.24]
[1754240073914,9.6084,162.12,162.1,3.24]
[1754240074106,9.6084,162.12,162.08,6.1698]
[1754240074107,3.44,162.17,162.11,3.24]
[1754240074307,3.44,162.17,162.11,3.02]
[1754240074714,6.21453684,162.19,162.11,3.02]
[1754240074715,3.44,162.14,162.11,3.02]
[1754240075607,3.44,162.15,162.11,6.1686]
[1754240075807,3.44,162.15,162.09,6.21453684]
[1754240076008,3.44,162.15,162.11,6.1686]
[1754240076408,6.1672,162.15,162.12,3.24]
[1754240076609,3.44,162.14,162.12,3.24]
[1754240077507,3.44,162.13,162.11,3.24]
[1754240080020,3.44,162.14,162.12,3.24]
[1754240083521,3.44,162.14,162.11,3.24]
[1754240084217,9.6078,162.14,162.11,3.24]
[1754240084416,3.45,162.13,162.11,3.24]
[1754240085020,6.21453684,162.15,162.08,3.28]
[1754240085222,3.45,162.16,162.08,3.28]
[1754240085223,3.45,162.12,162.08,3.28]
[1754240085518,6.1691,162.1,162.07,3.28]
[1754240085715,3.45,162.09,162.05,7.24432803]
[1754240086018,3.45,162.09,162.07,3.28]
[1754240087214,3.45,162.08,162.03,1.0738255]
[1754240087415,3.45,162.08,162.02,3.28]
[1754240088315,3.45,162.05,162.03,3.28]
[1754240088813,3.45,162.05,162.02,3.28]
[1754240089121,3.45,162.05,162.0,7.24669178]
[1754240089417,3.45,162.05,162.0,6.1728]
[1754240090823,3.45,162.04,162.01,6.1724]
[1754240091217,3.45,162.04,162.02,3.28]
[1754240091716,3.45,162.05,161.98,7.28864407]
[1754240092120,3.45,162.05,162.01,6.1722]
[1754240092325,3.45,162.04,162.02,3.28]
[1754240092920,6.1703,162.07,162.02,6.1721]
[1754240093125,3.45,162.06,162.03,3.28]
[1754240094615,3.45,162.06,162.0,6.21453684]
[1754240094817,3.45,162.06,162.04,3.28]
[1754240096617,3.45,162.08,162.05,3.28]
[1754240097124,3.45,162.08,162.02,6.21453684]
[1754240097319,83.0739794,162.1,162.05,3.28]
[1754240097619,86.5239794,162.1,162.05,3.28]
[1754240097819,86.5239794,162.1,162.08,6.1698]
[1754240098017,86.5239794,162.1,162.09,3.28]
[1754240099125,3.45,162.1,162.09,3.28]
[1754240102826,3.45,162.14,162.1,3.28]
[1754240103217,3.45,162.16,162.1,3.28]
[1754240103421,3.45,162.16,162.11,3.28]
[1754240104027,3.45,162.14,162.08,6.21453684]
[1754240104232,3.45,162.14,162.09,3.28]
[1754240104429,3.37,162.14,162.09,3.28]
[1754240104623,6.1677,162.14,162.09,3.28]
[1754240104828,6.21453684,162.17,162.09,3.28]
[1754240105019,6.21453684,162.11,162.05,3.28]
[1754240105224,6.21453684,162.09,162.01,3.28]
[1754240105726,6.1707,162.06,162.01,3.28]
[1754240106531,3.45,162.04,162.01,3.28]
[1754240107235,6.1721,162.03,161.98,3.28]
[1754240107436,3.45,162.01,161.98,3.28]
[1754240109130,9.6226,162.01,161.98,3.28]
[1754240110136,6.1732,162.0,161.96,1.07420669]
[1754240110437,9.6232,162.0,161.99,3.28]
[1754240111331,3.45,162.0,161.98,3.28]
[1754240112232,9.6233,161.99,161.98,3.28]
[1754240112938,3.45,161.99,161.98,3.28]
[1754240113939,3.26,162.01,161.98,3.28]
[1754240114139,99.64925759,162.1,161.98,3.28]
[1754240114140,3.26,162.02,161.98,3.28]
[1754240114436,93.43472075,162.1,162.01,3.44]
[1754240114632,3.26,162.08,162.03,6.21453684]
[1754240114832,3.26,162.08,162.04,3.44]
[1754240115229,3.26,162.07,162.04,3.44]
[1754240116037,3.26,162.05,162.04,3.44]
[1754240117132,3.26,162.06,162.05,3.44]
[1754240117527,9.4299,162.08,162.04,3.44]
[1754240117733,3.26,162.08,162.04,3.44]
[1754240117933,96.69472075,162.1,162.06,3.44]
[1754240118136,93.43472075,162.1,162.06,3.44]
[1754240118335,3.26,162.09,162.06,3.44]
[1754240118838,3.26,162.14,162.06,3.44]
[1754240119244,3.26,162.14,162.06,3.42]
[1754240120240,3.26,162.14,162.05,6.21453684]
[1754240120241,3.26,162.12,162.03,6.21453684]
[1754240120542,3.26,162.1,162.03,6.21453684]
[1754240120941,3.26,162.07,162.03,6.21453684]
[1754240121142,3.26,162.06,162.03,6.21453684]
[1754240121540,3.26,162.06,162.05,3.44]
[1754240122744,9.4299,162.08,162.05,3.44]
[1754240123539,3.26,162.12,162.05,9.65453684]
[1754240123739,3.26,162.12,162.06,3.44]
[1754240124548,9.4287,162.12,162.05,6.21453684]
[1754240124742,9.4287,162.12,162.06,3.44]
[1754240125353,3.26,162.11,162.07,6.1702]
[1754240125537,9.4288,162.11,162.08,3.44]
[1754240125740,3.26,162.1,162.06,3.44]
[1754240125943,3.26,162.14,162.06,3.44]
[1754240126446,6.1691,162.1,162.05,12.38523684]
[1754240126740,3.26,162.08,162.07,3.44]
[1754240127745,6.1688,162.11,162.06,6.1705]
[1754240128047,3.26,162.09,162.08,3.44]
[1754240128246,6.1688,162.11,162.08,3.44]
[1754240128449,3.26,162.1,162.09,3.44]
[1754240128946,6.1684,162.12,162.1,3.44]
[1754240129139,3.26,162.11,162.08,3.44]
[1754240129846,9.4287,162.11,162.08,3.44]
[1754240130143,3.26,162.1,162.09,3.44]
[1754240131342,9.4284,162.12,162.09,3.44]
[1754240131544,3.26,162.11,162.1,3.44]
[1754240131946,9.4287,162.11,162.1,3.44]
[1754240133051,3.26,162.11,162.1,3.44]
[1754240133750,9.4278,162.14,162.08,3.44]
[1754240133955,9.4278,162.14,162.1,3.44]
[1754240134854,3.26,162.14,162.1,3.44]
[1754240135454,3.26,162.14,162.1,9.609]
[1754240135655,3.26,162.14,162.11,3.44]
[1754240136049,3.26,162.14,162.1,6.169]
[1754240136253,3.26,162.14,162.11,3.44]
[1754240137163,6.1668,162.16,162.11,9.65453684]
[1754240137451,3.26,162.16,162.12,3.44]
[1754240137858,3.26,162.16,162.12,9.608]
[1754240138059,3.26,162.16,162.13,3.44]
[1754240139748,6.1665,162.17,162.13,3.44]
[1754240139952,3.26,162.16,162.13,3.44]
[1754240143056,3.26,162.15,162.13,3.44]
[1754240146854,6.21453684,162.21,162.13,3.44]
[1754240146855,3.39,162.18,162.13,3.44]
[1754240147155,24.09516274,162.24,162.16,6.21453684]
[1754240147361,3.39,162.2,162.17,3.39]
[1754240148461,9.5555,162.2,162.17,3.39]
[1754240149266,3.39,162.2,162.17,3.39]
[1754240150556,9.5553,162.2,162.17,3.39]
[1754240151055,6.1653,162.2,162.17,3.39]
[1754240151262,3.39,162.19,162.17,3.39]
[1754240152061,527.48,162.28,162.19,3.39]
[1754240152062,3.39,162.27,162.19,3.39]
[1754240152268,3.39,162.27,162.2,6.21453684]
[1754240152467,3.39,162.27,162.21,3.39]
[1754240152667,414.54,162.28,162.19,3.39]
[1754240152962,3.39,162.21,162.2,3.39]
[1754240153859,3.39,162.21,162.17,6.21453684]
[1754240154065,3.39,162.21,162.18,3.39]
[1754240154769,3.39,162.19,162.16,6.1665]
[1754240154962,3.39,162.19,162.17,6.21453684]
[1754240155264,6.1648,162.22,162.18,3.39]
[1754240155466,3.39,162.21,162.18,3.39]
[1754240155962,3.39,162.19,162.18,3.39]
[1754240157973,9.5556,162.19,162.18,3.39]
[1754240158372,3.39,162.18,162.16,3.39]
[1754240158672,3.39,162.17,162.16,3.39]
[1754240159568,9.5564,162.17,162.16,3.39]
[1754240159972,9.5564,162.17,162.15,6.21453684]
[1754240159973,6.21453684,162.21,162.11,6.21453684]
[1754240160274,3.39,162.16,162.14,3.39]
[1754240160775,9.5572,162.15,162.14,3.39]
[1754240165077,3.39,162.15,162.14,3.39]
[1754240165377,9.5569,162.16,162.14,3.39]
[1754240166177,6.1669,162.16,162.11,12.38313684]
[1754240166378,3.39,162.15,162.12,3.39]
[1754240166578,3.39,162.14,162.12,3.39]
[1754240169375,3.39,162.15,162.12,3.39]
[1754240171080,3.39,162.19,162.13,6.21453684]
[1754240171282,7.89238762,162.18,162.14,3.39]
[1754240171480,3.39,162.18,162.14,3.39]
[1754240172282,3.39,162.18,162.16,3.39]
[1754240174288,9.4561,162.18,162.16,3.27]
[1754240174489,3.29,162.17,162.16,3.27]
[1754240178093,9.4558,162.19,162.16,3.27]
[1754240178291,3.29,162.18,162.16,3.27]
[1754240179096,9.4561,162.18,162.16,3.27]
[1754240179394,3.29,162.17,162.15,6.21453684]
[1754240179795,3.29,162.17,162.16,3.27]
[1754240183299,7.80434288,162.17,162.16,3.27]
[1754240185492,13.97074288,162.17,162.16,3.27]
[1754240185989,7.80434288,162.17,162.16,3.27]
[1754240186195,3.29,162.16,162.14,3.27]
[1754240187200,9.4569,162.16,162.14,3.27]
[1754240193406,3.29,162.21,162.14,3.27]
[1754240193608,4.51745673,162.2,162.14,6.1673]
[1754240193809,4.51745673,162.19,162.15,3.27]
[1754240194008,6.21453684,162.23,162.15,3.27]
[1754240194009,13.97375673,162.18,162.15,3.27]
[1754240194208,7.80745673,162.17,162.15,3.27]
[1754240194409,7.80745673,162.17,162.14,6.1673]
[1754240194410,3.29,162.16,162.13,12.38233684]
[1754240194808,3.29,162.16,162.13,6.21453684]
[1754240195007,3.29,162.18,162.15,6.1672]
[1754240195310,7.80737181,162.17,162.16,3.27]
[1754240197212,7.80716742,162.17,162.16,3.27]
[1754240199310,4.51716742,162.17,162.16,3.27]
[1754240199514,3.29,162.21,162.16,3.27]
[1754240199710,7.8087712,162.2,162.18,3.27]
[1754240200007,4.51877067,162.19,162.18,3.27]
[1754240200603,3.29,162.2,162.18,3.27]
[1754240203905,3.33,162.22,162.18,3.32]
[1754240204110,3.33,162.25,162.17,3.32]
[1754240204612,3.33,162.25,162.19,3.32]
[1754240204820,3.33,162.23,162.19,3.32]
[1754240205313,9.4942,162.23,162.19,3.32]
[1754240205614,3.33,162.22,162.2,3.32]
[1754240206011,9.4945,162.22,162.2,3.32]
[1754240206211,3.33,162.21,162.15,8.4589858]
[1754240206515,3.33,162.21,162.15,3.32]
[1754240206919,3.33,162.16,162.13,3.32]
[1754240207417,6.167,162.16,162.13,3.32]
[1754240207617,3.33,162.15,162.13,3.32]
[1754240208418,3.33,162.15,162.14,3.32]
[1754240210215,6.1672,162.15,162.12,3.32]
[1754240210421,3.33,162.14,162.12,3.32]
[1754240210719,3.33,162.14,162.1,3.32]
[1754240210917,3.33,162.12,162.09,3.32]
[1754240211112,6.21453684,162.16,162.09,3.32]
[1754240211315,3.33,162.11,162.09,3.32]
[1754240211817,6.21453684,162.16,162.08,112.88]
[1754240211818,3.33,162.1,162.08,112.88]
[1754240212322,3.33,162.1,162.09,3.32]
[1754240212816,3.33,162.11,162.07,5.1389858]
[1754240213121,3.33,162.13,162.08,3.32]
[1754240213513,6.169,162.11,162.08,3.32]
[1754240213718,3.33,162.1,162.08,3.32]
[1754240213919,3.33,162.13,162.08,3.32]
[1754240214217,3.33,162.13,162.08,9.4898]
[1754240214521,3.33,162.15,162.09,3.32]
[1754240214927,3.33,162.13,162.09,6.1692]
[1754240215121,3.33,162.13,162.1,3.32]
[1754240215619,3.33,162.12,162.1,3.32]
[1754240216121,6.21453684,162.16,162.1,3.32]
[1754240216122,3.33,162.13,162.11,3.32]
[1754240216617,3.33,162.18,162.12,3.32]
[1754240217019,3.33,162.17,162.13,3.32]
[1754240217225,3.33,162.16,162.13,3.32]
[1754240217921,3.33,162.15,162.13,3.32]
[1754240218429,3.33,162.15,162.14,3.32]
[1754240220626,3.33,162.15,162.11,12.38313684]
[1754240220830,3.33,162.15,162.12,3.32]
[1754240221415,3.33,162.15,162.08,8.4589858]
[1754240221624,3.33,162.15,162.08,3.32]
[1754240222126,3.33,162.11,162.08,3.32]
[1754240222525,6.21453684,162.14,162.07,112.9]
[1754240222825,6.21453684,162.14,162.05,414.34]
[1754240222826,3.33,162.1,162.05,414.34]
[1754240223122,3.33,162.07,162.05,3.32]
[1754240223323,3.33,162.07,162.04,3.32]
[1754240224830,3.33,162.07,162.05,3.32]
[1754240225126,3.33,162.06,162.05,3.32]
[1754240225430,3.33,162.08,162.05,3.32]
[1754240225624,3.33,162.07,162.05,3.32]
[1754240226034,3.33,162.07,162.06,3.32]
[1754240226328,9.5002,162.07,162.06,3.32]
[1754240226530,6.1702,162.07,162.04,3.32]
[1754240226733,3.33,162.06,162.05,3.32]
[1754240227128,9.5006,162.06,162.05,3.32]
[1754240227525,3.33,162.06,162.05,3.32]
[1754240230729,6.1699,162.08,162.05,3.32]
[1754240231031,3.33,162.07,162.05,3.32]
[1754240231733,9.5002,162.07,162.06,3.32]
[1754240232233,3.33,162.07,162.06,3.32]
[1754240235138,3.4,162.11,162.06,3.32]
[1754240235530,3.4,162.08,162.06,3.32]
[1754240235733,3.4,162.12,162.06,3.32]
[1754240236044,3.4,162.1,162.06,3.32]
[1754240237835,3.4,162.1,162.08,3.36]
[1754240240743,3.4,162.09,162.07,6.17]
[1754240240946,3.4,162.09,162.06,6.1705]
[1754240241535,3.4,162.09,162.07,3.36]
[1754240242042,3.4,162.09,162.07,9.5302]
[1754240242243,3.4,162.09,162.08,3.36]
[1754240243838,3.4,162.14,162.08,3.36]
[1754240244139,3.4,162.11,162.09,3.36]
[1754240246042,3.4,162.1,162.09,3.36]
[1754240254844,3.4,162.11,162.09,3.36]
[1754240255160,3.4,162.12,162.09,3.36]
[1754240255345,4.59511958,162.11,162.09,3.36]
[1754240255548,3.4,162.12,162.09,9.5294]
[1754240255747,4.59495851,162.11,162.1,3.36]
[1754240257451,7.99495851,162.11,162.1,3.36]
[1754240271076,8.00016841,162.11,162.1,3.36]
[1754240274770,8.00016841,162.11,162.1,7.33697277]
[1754240279777,8.00539463,162.11,162.1,7.33697277]
[1754240281377,4.60539463,162.11,162.1,7.33697277]
[1754240281577,3.21,162.13,162.11,3.24]
[1754240281779,3.21,162.16,162.15,3.24]
[1754240281979,3.21,162.16,162.15,7.21697277]
[1754240282180,3.21,162.17,162.15,3.97697277]
[1754240282480,3.21,162.17,162.16,7.21697277]